lending/lending_fUSD_20240401
["ID","MTS","AMOUNT","RATE_DAILY","PERIOD"]
[321172883,1711931451708,-160.73,0.00060721,120]
[321172884,1711931451718,-500.0,0.00060721,120]
[321172885,1711931451728,-386.78,0.00060721,120]
[321172886,1711931451737,-421.1,0.00060721,120]
[321172887,1711931451746,-500.0,0.00060721,120]
[321172888,1711931451756,-500.0,0.00060721,120]
[321172889,1711931451766,-500.0,0.00060721,120]
[321172890,1711931451775,-500.0,0.00060721,120]
[321172891,1711931451784,-500.0,0.00060721,120]
[321172892,1711931451794,-533.06,0.00060721,120]
[321172893,1711931451804,-500.0,0.00060721,120]
[321172894,1711931451813,-500.0,0.00060721,120]
[321172895,1711931451823,-500.0,0.00060721,120]
[321172896,1711931451833,-500.0,0.00060721,120]
[321172897,1711931451843,-500.0,0.00060721,120]
[321172898,1711931451853,-572.96,0.00060721,120]
[321172899,1711931451863,-522.21,0.00060721,120]
[321172900,1711931451872,-194.42529879,0.00060721,120]
[321172901,1711931451881,-497.13,0.00060721,120]
[321172902,1711931451891,-500.0,0.00060721,120]
[321172903,1711931451901,-500.0,0.00060721,120]
[321172904,1711931451913,-343.88,0.00060721,120]
[321172905,1711931451922,-500.0,0.00060721,120]
[321172906,1711931451932,-500.0,0.00060721,120]
[321172907,1711931451942,-431.02,0.00060721,120]
[321172908,1711931451951,-500.0,0.00060721,120]
[321172909,1711931451961,-500.0,0.00060721,120]
[321172910,1711931451970,-236.57,0.00060721,120]
[321172911,1711931451980,-500.0,0.00060721,120]
[321172912,1711931451989,-500.0,0.00060721,120]
[321172913,1711931451998,-500.0,0.00060721,120]
[321172914,1711931452008,-386.89,0.00060721,120]
[321172915,1711931452017,-150.0,0.00060721,120]
[321172916,1711931452026,-210.92,0.00060721,120]
[321172917,1711931452036,-500.0,0.00060721,120]
[321172918,1711931452045,-500.0,0.00060721,120]
[321172919,1711931452055,-500.0,0.00060721,120]
[321172920,1711931452064,-500.0,0.00060721,120]
[321172921,1711931452073,-541.17,0.00060721,120]
[321172922,1711931452083,-500.0,0.00060721,120]
[321172923,1711931452092,-500.0,0.00060721,120]
[321172924,1711931452102,-500.0,0.00060721,120]
[321172925,1711931452111,-500.0,0.00060721,120]
[321172926,1711931452121,-500.0,0.00060721,120]
[321172927,1711931452131,-500.0,0.00060721,50]
[321172928,1711931452141,-500.0,0.00060721,120]
[321172929,1711931452150,-500.0,0.00060721,120]
[321172930,1711931452160,-358.0755867,0.00060721,120]
[321172931,1711931452172,-500.0,0.00060721,120]
[321172932,1711931452181,-500.0,0.00060721,120]
[321172933,1711931452190,-525.0,0.00060721,120]
[321172934,1711931452199,-884.88,0.00060721,120]
[321172935,1711931452209,-3000.0,0.00060721,120]
[321172936,1711931452218,-500.0,0.00060721,120]
[321172937,1711931452228,-500.0,0.00060721,120]
[321172938,1711931452237,-500.0,0.00060721,120]
[321172939,1711931452246,-500.0,0.00060721,120]
[321172940,1711931452255,-500.0,0.00060721,120]
[321172941,1711931452265,-500.0,0.00060721,120]
[321172942,1711931452275,-198.34,0.00060721,120]
[321172943,1711931452284,-500.0,0.00060721,120]
[321172944,1711931452295,-500.0,0.00060721,120]
[321172945,1711931452306,-500.0,0.00060721,120]
[321172946,1711931452316,-500.0,0.00060721,120]
[321172947,1711931452326,-483.15,0.00060721,120]
[321172948,1711931452336,-500.0,0.00060721,120]
[321172949,1711931452346,-500.0,0.00060721,120]
[321172950,1711931452355,-500.0,0.00060721,120]
[321172951,1711931452365,-500.0,0.00060721,120]
[321172952,1711931452375,-500.0,0.00060721,120]
[321172953,1711931452385,-339.19,0.00060721,120]
[321172954,1711931452395,-224.21,0.00060721,120]
[321172955,1711931452405,-500.0,0.00060721,120]
[321172956,1711931452417,-152.0,0.00060806,3]
[321172957,1711931452427,-338.53227644,0.00060894,120]
[321172958,1711931452441,-606.11,0.00060894,120]
[321172959,1711931452451,-500.0,0.00060894,120]
[321172960,1711931452460,-500.0,0.00060894,120]
[321172961,1711931452470,-648.95,0.00060894,120]
[321172962,1711931452479,-627.74,0.00060894,120]
[321172963,1711931452489,-500.0,0.00060894,120]
[321172964,1711931452499,-500.0,0.00060894,120]
[321172965,1711931452510,-500.0,0.00060894,120]
[321172966,1711931452520,-500.0,0.00060894,120]
[321172967,1711931452529,-500.0,0.00060894,120]
[321172968,1711931452539,-500.0,0.00060894,120]
[321172969,1711931452550,-276.84,0.00060894,120]
[321172970,1711931452561,-500.0,0.00060894,120]
[321172971,1711931452571,-500.0,0.00060894,120]
[321172972,1711931452581,-500.0,0.00060894,120]
[321172973,1711931452591,-813.21,0.00060894,120]
[321172974,1711931452601,-500.0,0.00060894,120]
[321172975,1711931452611,-500.0,0.00060894,120]
[321172976,1711931452622,-372.64,0.00060894,120]
[321172977,1711931452632,-500.0,0.00060894,120]
[321172978,1711931452641,-500.0,0.00060894,120]
[321172979,1711931452650,-500.0,0.00060894,120]
[321172980,1711931452662,-500.0,0.00060894,120]
[321172981,1711931452673,-514.28,0.00060894,120]
[321172982,1711931452683,-1194.64,0.00060894,120]
[321172983,1711931452692,-500.0,0.00060894,120]
[321172984,1711931452702,-500.0,0.00060894,120]
[321172985,1711931452713,-500.0,0.00060894,120]
[321172986,1711931452723,-528.65414391,0.00060894,120]
[321172987,1711931452733,-500.0,0.00060894,120]
[321172988,1711931452742,-500.0,0.00060894,120]
[321172989,1711931452752,-500.0,0.00060894,120]
[321172990,1711931452762,-284.771409,0.000609,14]
[321172991,1711931452771,-486.03,0.00060995,120]
[321172992,1711931452781,-500.0,0.00060995,120]
[321172993,1711931452790,-151.0,0.00060995,120]
[321172994,1711931452800,-600.71,0.00060995,120]
[321172995,1711931452810,-151.0,0.00060995,120]
[321172996,1711931452819,-500.0,0.00060995,120]
[321172997,1711931452830,-500.0,0.00060995,120]
[321172998,1711931452839,-500.0,0.00060995,120]
[321172999,1711931452849,-500.0,0.00060995,120]
[321173000,1711931452859,-500.0,0.00060995,120]
[321173001,1711931452868,-500.0,0.00060995,120]
[321173002,1711931452878,-150.0,0.00060995,120]
[321173003,1711931452887,-500.0,0.00060995,120]
[321173004,1711931452896,-500.0,0.00060995,120]
[321173005,1711931452906,-500.0,0.00060995,120]
[321173006,1711931452916,-525.0,0.00060995,120]
[321173007,1711931452926,-884.88,0.00060995,120]
[321173008,1711931452935,-3000.0,0.00060995,120]
[321173009,1711931452947,-500.0,0.00060995,120]
[321173010,1711931452958,-500.0,0.00060995,120]
[321173011,1711931452968,-500.0,0.00060995,120]
[321173012,1711931452978,-500.0,0.00060995,120]
[321173013,1711931452987,-500.0,0.00060995,120]
[321173014,1711931452996,-500.0,0.00060995,120]
[321173015,1711931453006,-176.0,0.00061,115]
[321173016,1711931453017,-1294.45,0.000611,120]
[321173017,1711931453027,-151.0,0.00061151,120]
[321173018,1711931453037,-606.11,0.00061168,120]
[321173019,1711931453046,-500.0,0.00061168,120]
[321173020,1711931453056,-500.0,0.00061168,120]
[321173021,1711931453066,-627.74,0.00061168,120]
[321173022,1711931453075,-500.0,0.00061168,120]
[321173023,1711931453086,-235.09,0.00061168,120]
[321173024,1711931453095,-283.65100668,0.00061168,120]
[321173025,1711931453106,-500.0,0.00061168,120]
[321173026,1711931453115,-232.72,0.00061168,120]
[321173027,1711931453125,-500.0,0.00061168,120]
[321173028,1711931453135,-500.0,0.00061168,120]
[321173029,1711931453145,-813.21,0.00061168,120]
[321173030,1711931453155,-500.0,0.00061168,120]
[321173031,1711931453168,-500.0,0.00061168,120]
[321173032,1711931453177,-500.0,0.00061168,120]
[321173033,1711931453187,-500.0,0.00061168,120]
[321173034,1711931453200,-500.0,0.00061168,120]
[321173035,1711931453209,-1194.64,0.00061168,120]
[321173036,1711931453219,-500.0,0.00061168,120]
[321173037,1711931453229,-500.0,0.00061168,120]
[321173038,1711931453239,-208.54,0.00061168,120]
[321173039,1711931453250,-500.0,0.00061168,120]
[321173040,1711931453261,-1777.34311853,0.00061211,2]
[321173041,1711931454129,960.0,0.00030208,120]
[321173043,1711931507090,915.0,0.00030972,60]
[321173071,1711932632522,-155.0,0.00032988,2]
[321173072,1711932632531,-155.0,0.00032999,4]
[321173073,1711932632541,-350.0,0.00033,3]
[321173074,1711932632550,-187.49849639,0.00037507,2]
[321173075,1711932632559,-159.71300359,0.00037708,2]
[321173076,1711932632569,-156.52,0.00037808,2]
[321173077,1711932632578,-156.36,0.00037808,2]
[321173078,1711932632587,-626.989691,0.000426,39]
[321173079,1711932632596,-156.52,0.00046824,2]
[321173080,1711932632605,-838.06132381,0.0005,2]
[321173081,1711932632614,-187.49849638,0.00054381,2]
[321173082,1711932632624,-152.0,0.00054482,3]
[321173083,1711932632634,-499.99,0.00054482,2]
[321173084,1711932632643,-513.78160398,0.000546,4]
[321173085,1711932632652,-3771.13523049,0.000548,120]
[321173086,1711932632662,-152.0,0.00055628,4]
[321173087,1711932632671,-156.52,0.00055841,2]
[321173088,1711932632681,-152.0,0.00056775,5]
[321173089,1711932632691,-341.1,0.00056789,2]
[321173090,1711932632700,-201.87,0.00057088,30]
[321173091,1711932632710,-969.94,0.00057234,120]
[321173092,1711932632719,-2847.71,0.00057304,30]
[321173093,1711932632728,-152.37,0.00057507,120]
[321173094,1711932632737,-200.0,0.00057553,120]
[321173095,1711932632746,-250.0,0.00057919,120]
[321173096,1711932632756,-152.0,0.00057922,6]
[321173097,1711932632765,-3235.34,0.00058094,2]
[321173098,1711932632775,-500.0,0.00058134,120]
[321173099,1711932632786,-150.25,0.00058406,120]
[321173100,1711932632794,-500.0,0.00058415,30]
[321173101,1711932632804,-1000.0,0.00058475,120]
[321173102,1711932632813,-23890.0,0.00058475,2]
[321173103,1711932632823,-351.53,0.00058707,2]
[321173104,1711932632832,-250.0,0.00058739,120]
[321173105,1711932632842,-150.0,0.00058763,2]
[321173106,1711932632851,-434.4,0.00058883,120]
[321173107,1711932632861,-800.0,0.00059019,120]
[321173108,1711932632871,-341.1,0.00059053,2]
[321173109,1711932632880,-152.0,0.00059069,7]
[321173110,1711932632889,-1297.12,0.00059119,2]
[321173111,1711932632898,-159.05,0.00059472,2]
[321173112,1711932632907,-2732.524888,0.00059698,2]
[321173113,1711932632916,-65210.7668,0.00059699,2]
[321173114,1711932632928,-500.0,0.00059798,120]
[321173115,1711932632937,-500.0,0.00059798,120]
[321173116,1711932632947,-553.77,0.00059798,120]
[321173117,1711932632956,-500.0,0.00059798,120]
[321173118,1711932632965,-500.0,0.00059798,120]
[321173119,1711932632975,-500.0,0.00059798,120]
[321173120,1711932632984,-500.0,0.00059798,120]
[321173121,1711932632994,-160.56244956,0.00059798,120]
[321173122,1711932633003,-150.0,0.00059798,120]
[321173123,1711932633013,-7001.17581859,0.000598,2]
[321173124,1711932633022,-167.13508205,0.000598,14]
[321173125,1711932633032,-2000.18,0.00059889,120]
[321173126,1711932633041,-500.0,0.00059898,120]
[321173127,1711932633050,-320.98860032,0.00059898,2]
[321173128,1711932633059,-500.0,0.00059899,120]
[321173129,1711932633068,-500.0,0.00059899,120]
[321173130,1711932633077,-500.0,0.00059899,120]
[321173131,1711932633086,-500.0,0.00059899,120]
[321173132,1711932633095,-500.0,0.00059899,120]
[321173133,1711932633105,-500.0,0.00059899,120]
[321173134,1711932633114,-500.0,0.00059899,120]
[321173135,1711932633123,-20000.0,0.000599,2]
[321173136,1711932633132,-8375.33585619,0.000599,40]
[321173137,1711932633141,-4137.81006953,0.000599,35]
[321173138,1711932633153,-942.89298596,0.000599,35]
[321173139,1711932633164,-490.57451877,0.000599,35]
[321173140,1711932633176,-1218.29655359,0.000599,35]
[321173141,1711932633196,-798.28940842,0.000599,35]
[321173142,1711932633636,-1303.76080478,0.000599,35]
[321173150,1711932638383,-33108.37565895,0.000599,35]
[321173151,1711932638393,-5312.97194516,0.000599,30]
[321173152,1711932638405,-660.63999668,0.000599,30]
[321173153,1711932638418,-288.9530001,0.000599,30]
[321173154,1711932638638,-148.82801276,0.000599,30]
[321173155,1711932638694,-5169.77351889,0.000599,30]
[321173156,1711932640537,-1384.58533021,0.000599,30]
[321173170,1711932643395,-409.85196411,0.00059698,120]
[321173171,1711932643406,-1532.0757828,0.000599,30]
[321173172,1711932643419,-371.89036552,0.000599,30]
[321173173,1711932643668,-6651.34019448,0.000599,30]
[321173174,1711932643681,-2766.09061165,0.000599,30]
[321173175,1711932643694,-5294.77094462,0.000599,30]
[321173182,1711932646449,-8906.8,0.00037506,4]
[321173183,1711932646459,-836.84204225,0.0005,2]
[321173184,1711932646469,-409.8519641,0.00059749,120]
[321173185,1711932646479,-12418.08029713,0.000599,30]
[321173186,1711932646490,-3168.4371139,0.000599,25]
[321173187,1711932646502,-37530.37203856,0.000599,25]
[321173188,1711932646515,-1301.19084754,0.000599,25]
[321173189,1711932646525,-34291.31360246,0.000599,20]
[321173190,1711932646628,-7708.68639754,0.000599,20]
[321173191,1711932646639,-42000.0,0.000599,15]
[321173192,1711932646649,-42000.0,0.000599,10]
[321173193,1711932646659,-42000.0,0.000599,5]
[321173194,1711932646670,-500.0,0.00059998,120]
[321173195,1711932646680,-500.0,0.00059999,120]
[321173196,1711932646691,-500.0,0.00059999,120]
[321173197,1711932646701,-9894.08355956,0.0006,120]
[321173198,1711932646711,-518.00010414,0.0006,90]
[321173199,1711932646722,-1495.10162571,0.0006,7]
[321173200,1711932646732,-500.0,0.00060072,120]
[321173201,1711932646742,-450.0,0.00060072,120]
[321173202,1711932646751,-152.0,0.00060216,8]
[321173203,1711932646761,-159.05,0.00060247,2]
[321173204,1711932646771,-500.0,0.00060346,120]
[321173205,1711932646781,-500.0,0.00060446,120]
[321173206,1711932646791,-7001.17581857,0.00060544,2]
[321173207,1711932646802,-500.0,0.0006062,120]
[321173208,1711932646813,-346.42,0.00060849,30]
[321173209,1711932646824,-161.39,0.00060849,30]
[321173210,1711932646836,-416.36,0.00060849,30]
[321173211,1711932646846,-572.11,0.00060849,30]
[321173212,1711932646857,-518.54,0.00060849,30]
[321173213,1711932646868,-416.36,0.00060849,30]
[321173214,1711932646879,-151.35,0.00060849,60]
[321173215,1711932646891,-154.15,0.00060849,30]
[321173216,1711932646902,-152.76,0.00060849,30]
[321173217,1711932646911,-151.85,0.00060849,30]
[321173218,1711932646921,-318.31,0.00060849,30]
[321173219,1711932646930,-348.01,0.00060849,30]
[321173220,1711932646940,-322.65,0.00060849,30]
[321173221,1711932646950,-518.54,0.00060849,30]
[321173222,1711932646959,-416.36,0.00060849,30]
[321173223,1711932646970,-150.0,0.00060849,30]
[321173224,1711932646979,-150.0,0.00060849,30]
[321173225,1711932646988,-150.0,0.00060849,30]
[321173226,1711932646998,-348.01,0.00060849,30]
[321173227,1711932647008,-416.36,0.00060849,30]
[321173228,1711932647017,-518.54,0.00060849,30]
[321173229,1711932647027,-150.0,0.00060849,30]
[321173230,1711932647037,-150.0,0.00060849,30]
[321173231,1711932647047,-245.08,0.00060849,30]
[321173232,1711932647057,-518.54,0.00060849,30]
[321173233,1711932647067,-411.91,0.00060849,30]
[321173234,1711932647077,-150.0,0.00060849,30]
[321173235,1711932647087,-150.0,0.00060849,30]
[321173236,1711932647096,-518.54,0.00060849,30]
[321173237,1711932647107,-518.54,0.00060849,30]
[321173238,1711932647118,-518.54,0.00060849,30]
[321173239,1711932647128,-518.54,0.00060849,30]
[321173240,1711932647139,-518.54,0.00060849,30]
[321173241,1711932647149,-518.54,0.00060849,30]
[321173242,1711932647159,-518.54,0.00060849,30]
[321173243,1711932647169,-518.54,0.00060849,30]
[321173244,1711932647180,-518.54,0.00060849,30]
[321173245,1711932647191,-516.49,0.00060849,30]
[321173246,1711932647201,-500.0,0.00060894,120]
[321173247,1711932647211,-167.0,0.00061,115]
[321173248,1711932647221,-159.05,0.00061022,2]
[321173249,1711932647231,-163.52,0.00061055,2]
[321173250,1711932647241,-163.52,0.00061157,2]
[321173251,1711932647251,-500.0,0.00061168,120]
[321173252,1711932647260,-155.85737,0.00061168,102]
[321173253,1711932647270,-24261.3908986,0.00061216,2]
[321173254,1711932647280,-163.52,0.00061258,2]
[321173255,1711932647289,-7001.17581857,0.00061289,2]
[321173256,1711932647299,-2042.0,0.00061299,117]
[321173257,1711932647308,-341.1,0.00061317,2]
[321173258,1711932647318,-170.11,0.00061333,2]
[321173259,1711932647327,-163.52,0.0006136,2]
[321173260,1711932647337,-152.0,0.00061362,9]
[321173261,1711932647347,-150.0,0.000614,14]
[321173262,1711932647358,-1136.90139976,0.00061441,13]
[321173263,1711932647368,-500.0,0.00061442,120]
[321173264,1711932647379,-351.53,0.00061447,2]
[321173265,1711932647389,-167.0,0.000615,116]
[321173266,1711932647399,-500.0,0.00061716,120]
[321173267,1711932647410,-159.05,0.00061796,2]
[321173268,1711932647419,-150.0,0.000619,14]
[321173269,1711932647429,-500.0,0.0006199,120]
[321173270,1711932647438,-167.13508205,0.00061999,14]
[321173271,1711932647449,-2000.0,0.00062,120]
[321173272,1711932647459,-167.0,0.00062,117]
[321173273,1711932647469,-1000.0,0.00062,120]
[321173274,1711932647479,-7001.17581857,0.00062033,2]
[321173275,1711932647490,-500.0,0.00062264,120]
[321173276,1711932647499,-150.0,0.000624,15]
[321173277,1711932647510,-3390.28077,0.00062453,30]
[321173278,1711932647519,-167.0,0.000625,118]
[321173279,1711932647529,-152.0,0.00062509,10]
[321173280,1711932647539,-500.0,0.00062538,120]
[321173281,1711932647549,-159.05,0.00062571,2]
[321173282,1711932647559,-150.0,0.00062575,30]
[321173283,1711932647568,-150.0,0.00062575,30]
[321173284,1711932647578,-150.0,0.00062575,30]
[321173285,1711932647587,-150.0,0.00062575,30]
[321173286,1711932647597,-150.0,0.00062575,30]
[321173287,1711932647607,-150.0,0.00062575,30]
[321173288,1711932647617,-150.0,0.00062575,30]
[321173289,1711932647627,-150.0,0.00062575,30]
[321173290,1711932647636,-150.0,0.00062575,30]
[321173291,1711932647646,-150.0,0.00062575,30]
[321173292,1711932647655,-150.0,0.00062575,30]
[321173293,1711932647665,-500.0,0.0006258,120]
[321173294,1711932647675,-189.99361359,0.0006258,120]
[321173295,1711932647685,-500.0,0.0006258,120]
[321173296,1711932647695,-500.0,0.0006258,120]
[321173297,1711932647705,-500.0,0.0006258,120]
[321173298,1711932647715,-500.0,0.0006258,120]
[321173299,1711932647724,-152.37,0.00062644,120]
[321173300,1711932647734,-500.0,0.00062665,120]
[321173301,1711932647744,-228.46,0.00062665,120]
[321173302,1711932647754,-500.0,0.00062665,120]
[321173303,1711932647764,-669.3,0.00062665,120]
[321173304,1711932647774,-500.0,0.00062665,120]
[321173305,1711932647785,-560.25008118,0.00062665,120]
[321173306,1711932647799,-418.72,0.00062665,120]
[321173307,1711932647810,-188.24,0.00062665,120]
[321173308,1711932647821,-500.0,0.00062665,120]
[321173309,1711932647831,-500.0,0.00062665,120]
[321173310,1711932647841,-500.0,0.00062665,120]
[321173311,1711932647850,-700.53,0.00062665,120]
[321173312,1711932647861,-212.63,0.00062767,30]
[321173313,1711932647873,-150.0,0.00062767,30]
[321173314,1711932647884,-7001.17581857,0.00062778,2]
[321173315,1711932647894,-500.0,0.00062812,120]
[321173316,1711932647904,-500.0,0.00062854,120]
[321173317,1711932647914,-500.0,0.00062854,120]
[321173318,1711932647923,-500.0,0.00062854,120]
[321173319,1711932647933,-1724.81907404,0.00062889,120]
[321173320,1711932647946,-746.18092596,0.00062889,120]
[321173321,1711932647956,-150.0,0.000629,15]
[321173322,1711932647966,-500.0,0.00062938,120]
[321173323,1711932647976,-500.0,0.00062938,120]
[321173324,1711932647986,-500.0,0.00062938,120]
[321173325,1711932647995,-515.72,0.00062938,120]
[321173326,1711932648005,-241.10916626,0.00062938,120]
[321173327,1711932648016,-258.89083374,0.00062938,120]
[321173328,1711932648026,-500.0,0.00062938,120]
[321173329,1711932648036,-645.26,0.00062938,120]
[321173330,1711932648046,-500.0,0.00062938,120]
[321173331,1711932648055,-500.0,0.00062938,120]
[321173332,1711932648066,-895.98,0.00062938,120]
[321173333,1711932648075,-152.76,0.00062938,120]
[321173334,1711932648085,-500.0,0.00062938,120]
[321173335,1711932648094,-500.0,0.00062938,120]
[321173336,1711932648104,-500.0,0.00062938,120]
[321173337,1711932648115,-500.0,0.00062938,120]
[321173338,1711932648125,-500.0,0.00062938,120]
[321173339,1711932648134,-500.0,0.00062939,120]
[321173340,1711932648143,-500.0,0.00062939,120]
[321173341,1711932648153,-151.36916627,0.00062939,120]
[321173342,1711932670042,194277.46628695,0.00025,2]
[321173350,1711932836366,59325.23654597,0.00025,2]
[321173351,1711933026366,167.9279156,0.00025,2]
[321173352,1711933032682,861.65667934,0.00025,4]
[321173353,1711933033242,217.05486785,0.0002425,2]
[321173354,1711933036797,1130.17180943,0.00025,2]
[321173355,1711933036975,4759.37158349,0.00025,2]
[321173356,1711933037127,291.12818161,0.00025,2]
[321173357,1711933037782,245.87174768,0.00022,2]
[321173358,1711933038658,271.98832337,0.00024,2]
[321173359,1711933048587,861.65667934,0.00025,4]
[321173360,1711933064582,861.65667934,0.00025,4]
[321173361,1711933084589,425.93977847,0.00025,4]
[321173377,1711933832966,-155.0,0.00037707,4]
[321173378,1711933832976,-159.29070098,0.00037708,2]
[321173379,1711933832985,-155.33,0.00037808,2]
[321173380,1711933832994,-155.15,0.00037808,2]
[321173381,1711933833003,-157.33,0.00037808,2]
[321173382,1711933833012,-4727.03258683,0.0003999,2]
[321173383,1711933833025,-3789.67435159,0.0003999,2]
[321173384,1711933833037,-321.72000001,0.0003999,2]
[321173385,1711933833191,-586.85226721,0.0003999,2]
[321173386,1711933833202,-750.0,0.0003999,2]
[321173397,1711933838796,-794.4679711,0.0003999,2]
[321173398,1711933838805,-275.5,0.000426,3]
[321173399,1711933838814,-1212.62674816,0.00042813,2]
[321173400,1711933838823,-1082.7195998,0.00042813,7]
[321173406,1711933839804,-325.09210075,0.00042813,7]
[321173407,1711933839934,-2083.47699332,0.00042813,7]
[321173408,1711933839943,-155.33,0.00048828,2]
[321173409,1711933839953,-8313.11068133,0.0005,14]
[321173410,1711933839962,-167.0,0.0005,120]
[321173411,1711933839971,-499.99,0.0005,2]
[321173412,1711933839983,-157.33,0.00051977,2]
[321173413,1711933839991,-150.0,0.0005401,120]
[321173414,1711933840000,-289.93,0.00055717,2]
[321173415,1711933840009,-1178.0,0.00056838,120]
[321173416,1711933840018,-179.48,0.00057524,120]
[321173417,1711933840028,-500.0,0.00057565,120]
[321173418,1711933840037,-712.87217546,0.0005758,4]
[321173419,1711933840046,-206.17,0.00057649,2]
[321173420,1711933840055,-1000.0,0.00057696,120]
[321173421,1711933840064,-808.28,0.00057709,120]
[321173422,1711933840073,-153.33,0.00057738,120]
[321173423,1711933840082,-289.93,0.00057981,2]
[321173424,1711933840091,-362.0,0.00058463,120]
[321173425,1711933840100,-2043.0,0.00059056,117]
[321173426,1711933840110,-2695.67774357,0.00059789,2]
[321173427,1711933840120,-23692.0236,0.00059799,2]
[321173428,1711933840130,-205.26278762,0.00059799,30]
[321173429,1711933840140,-1862.73297839,0.00059799,2]
[321173430,1711933840152,-1871.68314134,0.000598,2]
[321173431,1711933840169,-49.21955866,0.000598,2]
[321173432,1711933840179,-925.68834059,0.000598,2]
[321173499,1711933843159,-190.3951778,0.00059798,4]
[321173500,1711933843170,-74.31165941,0.000598,2]
[321173501,1711933843179,-6548.04120653,0.000598,2]
[321173502,1711933843190,-2924.10058828,0.000598,2]
[321173511,1711933846015,-4471.41410519,0.000598,2]
[321173512,1711933846024,-205.26278759,0.00059819,30]
[321173513,1711933846034,-1178.0,0.00059838,120]
[321173514,1711933846043,-205.26278759,0.00059839,30]
[321173515,1711933846052,-155.33,0.00059848,2]
[321173516,1711933846062,-205.26278759,0.00059858,30]
[321173517,1711933846071,-159.29070097,0.00059878,2]
[321173518,1711933846081,-205.26278759,0.00059878,30]
[321173519,1711933846090,-170.24844021,0.00059878,2]
[321173520,1711933846100,-153.53330098,0.00059878,82]
[321173521,1711933846109,-166.63,0.00059889,30]
[321173522,1711933846119,-2629.62302131,0.00059897,4]
[321173523,1711933846129,-227.99214438,0.00059897,4]
[321173524,1711933846138,-390.33707838,0.00059898,7]
[321173525,1711933846148,-500.0,0.00059898,120]
[321173526,1711933846161,-500.0,0.00059898,120]
[321173527,1711933846171,-928.84,0.00059898,120]
[321173528,1711933846182,-500.0,0.00059898,120]
[321173529,1711933846192,-500.0,0.00059898,120]
[321173530,1711933846204,-500.0,0.00059898,120]
[321173531,1711933846213,-1526.44,0.00059898,120]
[321173532,1711933846223,-500.0,0.00059898,120]
[321173533,1711933846235,-500.0,0.00059898,120]
[321173534,1711933846245,-500.0,0.00059898,120]
[321173535,1711933846255,-500.0,0.00059898,120]
[321173536,1711933846264,-500.0,0.00059898,120]
[321173537,1711933846274,-500.0,0.00059898,120]
[321173538,1711933846285,-500.0,0.00059898,120]
[321173539,1711933846295,-500.0,0.00059898,120]
[321173540,1711933846306,-518.64,0.00059898,120]
[321173541,1711933846317,-500.0,0.00059898,120]
[321173542,1711933846326,-500.0,0.00059898,120]
[321173543,1711933846335,-500.0,0.00059898,120]
[321173544,1711933846344,-500.0,0.00059898,120]
[321173545,1711933846353,-500.0,0.00059898,120]
[321173546,1711933846362,-500.0,0.00059898,120]
[321173547,1711933846371,-736.58,0.00059898,120]